Cogmind - Beta 15 @@@ ROGUE MODE // 2025.05.19 @ 21:28:57 Player: DuckBoy Result: Destroyed by J3-FEA(R) with Subdweller Machine Gun Performance ------------- Evolutions (0) 0 Regions Visited (2) 400 Robots Destroyed (28) 140 Value Destroyed (477) 477 Prototype IDs (0) 0 Alien Tech Used (0) 0 Bonus (0) 0 TOTAL SCORE: 1017 Bonus ------- None Cogmind --------- Core Integrity 0/250 Matter 243/300 Energy 238/250 System Corruption 1% Temperature Cool (30) Movement Treading (160) Location -10/Subcaves Parts ------- > --- POWER (1) -------- Ion Engine > --- PROPULSION (2) --- Light Treads Light Treads > --- UTILITY (2) ------ Large Storage Unit Hardened Light Armor Plating > --- WEAPON (2) ------- Beam Cannon > --- INVENTORY (15) --- Light Treads Light Treads Light Treads Wheel Hardened Light Armor Plating Hardened Light Armor Plating Hardened Light Armor Plating Hardened Light Armor Plating Beam Cannon Beam Cannon Peak State ------------ > --- POWER ------------ Ion Engine > --- PROPULSION ------- Light Treads Light Treads > --- UTILITY ---------- Large Storage Unit Hardened Light Armor Plating > --- WEAPON ----------- Beam Cannon Assault Rifle > --- INVENTORY -------- Ion Engine Light Treads Light Treads Light Treads Light Treads Light Treads Wheel Hardened Light Armor Plating Hardened Light Armor Plating Hardened Light Armor Plating Hardened Light Armor Plating Hardened Light Armor Plating Beam Cannon Beam Cannon Beam Cannon [Rating: 10] Favorites ----------- Power Ion Engine Engine Ion Engine Propulsion Light Treads Treads Light Treads Wheel Wheel Utility Medium Storage Unit Storage Medium Storage Unit Protection Hardened Light Armor Plating Weapon Assault Rifle Energy Gun Medium Laser Energy Cannon Beam Cannon Ballistic Gun Assault Rifle Build | -11 -10 -10 ------- Run | Yrd Mat Sub Slots Evolved . | . . . Power . | . . . Propulsion . | . . . Utility . | . . . Weapon . | . . . Parts Attached 19 | 6 8 5 Power 2 | 1 . 1 Engine 2 | 1 . 1 Core . | . . . Reactor . | . . . Propulsion 6 | 2 2 2 Treads 4 | . 2 2 Leg . | . . . Wheel 2 | 2 . . Hover . | . . . Flight . | . . . Utility 6 | 1 4 1 Device . | . . . Storage 3 | 1 2 . Processor . | . . . Hackware . | . . . Protection 3 | . 2 1 Artifact . | . . . Weapon 5 | 2 2 1 Energy Gun 1 | 1 . . Energy Cannon 2 | . 1 1 Ballistic Gun 2 | 1 1 . Ballistic Cannon . | . . . Launcher . | . . . Special Weapon . | . . . Impact Weapon . | . . . Slashing Weapon . | . . . Piercing Weapon . | . . . Special Melee Weapon . | . . . Unidentified Prototypes . | . . . Parts Lost 6 | . . 6 Power 1 | . . 1 Propulsion 2 | . . 2 Utility 1 | . . 1 Weapon 2 | . . 2 Highest Loss Streak 4 | . . 4 To Critical Strikes . | . . . Average Backups 10 | 3 10 13 Power . | . 1 . Propulsion 4 | 1 4 5 Utility 2 | . 2 4 Weapon 2 | . 2 3 Tool/Special . | . . . Unused Backups 15 | . 6 9 Power . | . . . Propulsion 5 | . 2 3 Utility 6 | . 2 4 Weapon 4 | . 2 2 Tool/Special . | . . . Average Slot Usage (%) 99 | . 99 99 Engine 14 | . 14 14 Treads 27 | . 27 27 Storage 14 | . 14 14 Protection 13 | . 13 14 Energy Gun 7 | . 7 . Energy Cannon 6 | . 6 14 Ballistic Gun 13 | . 14 13 Peak Build Rating 10 | 6 10 10 Average Rating 8 | 4 8 9 On Entrance 5 | . 6 10 Naked Turns . | . . . Heaviest Build 35 | 14 35 35 Greatest Support 40 | 20 40 40 Greatest Overweight (x) 1 | . 1 . Average Overweight (x) . | . . . Largest Inventory Capacity 15 | 8 15 15 Average Capacity 11 | 7 10 15 Most Carried 15 | 6 15 15 Average Carried 10 | 3 10 12 Final Capacity 15 | 8 15 15 Final Carried 15 | 6 15 10 Class Distribution -------------------- 100% | Mutant Dominant Class ---------------- Mutant | -10/Materials Mutant | -10/Subcaves Resources | -11 -10 -10 ----------- Run | Yrd Mat Sub Matter Collected 604 | 250 307 47 Remotely . | . . . Salvage Created 732 | . 627 105 Parts 63 | . 58 5 Haulers Intercepted 2 | . 2 . Recyclers Shooed . | . . . Parts Field Recycled . | . . . Retrieved Matter . | . . . Parts Self-Destructed . | . . . Prevented . | . . . Kills | -11 -10 -10 ------- Run | Yrd Mat Sub Combat Hostiles Destroyed 19 | . 17 2 Guns 16 | . 16 . Cannons 3 | . 1 2 Classes Destroyed 8 | . 7 1 Worker 1 | . 1 . Tunneler 2 | . 2 . Hauler 2 | . 2 . Operator 1 | . 1 . Watcher 3 | . 3 . Swarmer 11 | . 11 . Grunt 6 | . 6 . Subdweller 2 | . . 2 Best Kill Streak 5 | . 5 1 Combat Bots Only 3 | . 3 1 Max Kills in Single Turn 2 | . 2 1 Gunslinging . | . . . Exploded . | . . . Melee . | . . . Uniques/NPCs Destroyed . | . . . Combat | -11 -10 -10 -------- Run | Yrd Mat Sub Hostile Shots Fired 135 | . 75 60 Missed 36 | . 22 14 Hits 99 | . 53 46 Projectile 99 | . 53 46 Critical Strikes 2 | . . 2 Damage Taken 1421 | . 462 959 Core 266 | . 75 191 Absorbed by Shields . | . . . Regen/Repaired (Parts) 85 | . 85 . Core Remaining (%) 100 | 100 . . Volleys Fired 83 | . 52 31 Largest 2 | . 2 2 Hottest 120 | . 80 120 Shots Fired 164 | . 103 61 Gun 124 | . 96 28 Cannon 40 | . 7 33 Launcher . | . . . Special . | . . . Kinetic 80 | . 52 28 Thermal 84 | . 51 33 Explosive . | . . . Electromagnetic . | . . . Robot Hit Streak 20 | . 6 20 Robot Miss Streak 4 | . 4 1 Penetration Max . | . . . Secondary Targets 1 | . 1 . Max Gunslinging Chain 1 | . 1 . Shots Hit Robots 114 | . 63 51 Core Hits 40 | . 35 5 Critical Kills . | . . . Critical Parts Destroyed . | . . . Critical Strikes 2 | . 2 . Burn 2 | . 2 . Melee Attacks . | . . . Impact . | . . . Slashing . | . . . Piercing . | . . . Sneak Attacks . | . . . Combat Hostiles . | . . . Follow-up Attacks . | . . . Damage Inflicted 1147 | . 830 317 Guns 829 | . 742 87 Cannons 318 | . 88 230 Explosions . | . . . Melee . | . . . Ramming . | . . . Kinetic 440 | . 353 87 Thermal 707 | . 477 230 Explosive . | . . . Electromagnetic . | . . . Impact . | . . . Slashing . | . . . Piercing . | . . . Highest Corruption 1 | . 1 1 Average Corruption 1 | . 1 1 Corruption Purged . | . . . Corruption Blocked . | . . . Effects 9 | . 7 2 Message Errors 2 | . . 2 Matter Fused 3 | . 3 . Energy Discharges 1 | . 1 . Data Loss (minor) 1 | . 1 . Data Loss (major) 1 | . 1 . Alerts 1 | . 1 . Overload Shots . | . . . Overflow Damage . | . . . Projectiles . | . . . Explosions . | . . . Melee . | . . . Knockbacks . | . . . Impact . | . . . Kinetic . | . . . Secondary . | . . . Self-Inflicted Damage . | . . . Shots . | . . . Rammed . | . . . Targets Rammed . | . . . Kicked . | . . . Crushed . | . . . Highest Temperature 231 | . 231 30 Average Temperature 54 | . 55 17 Received Heat Transfer 96 | . 72 24 Siege Activations . | . . . Martial Activations . | . . . Shielding Activations . | . . . Robots Disrupted . | . . . Combat Hostiles . | . . . Robots Corrupted . | . . . Combat Hostiles . | . . . Parts Fried . | . . . Impact Corruptions . | . . . Robots Melted . | . . . Combat Hostiles . | . . . Parts Melted 4 | . 4 . Heat Transferred 1961 | . 1480 481 Parts Sabotaged . | . . . Parts Stolen . | . . . Parts Stripped . | . . . Power Chain Reactions . | . . . Alert | -11 -10 -10 ------- Run | Yrd Mat Sub Maximum Alert Level . | . . . Low Security (%) 100 | 100 100 . Level 1 . | . . . Level 2 . | . . . Level 3 . | . . . Level 4 . | . . . Level 5 . | . . . High Security . | . . . Max Security . | . . . Peak Influence 156 | . 156 . Initial . | . . . Average 51 | . 53 . Influence Increases 561 | . 561 . Destroy 0b10 Robot/C 340 | . 340 . Destroy 0b10 Robot/NC 45 | . 45 . Destroy Leader 80 | . 80 . Successful Hack 36 | . 36 . Select Force Hacks 60 | . 60 . Influence Decreases 561 | . 521 40 Entered New Map 20 | . . 20 Time Decay 541 | . 521 20 Squads Dispatched 4 | . 4 . Investigation 3 | . 3 . Extermination . | . . . Reinforcement 1 | . 1 . Assault . | . . . Garrison . | . . . Intercept . | . . . Searches Triggered . | . . . Construction Impeded . | . . . Haulers Reinforced . | . . . Active Scanning Responses . | . . . Cargo Convoy Interrupts . | . . . Stealth | -11 -10 -10 --------- Run | Yrd Mat Sub Distress Signals . | . . . Communications Jammed . | . . . Distress Signals . | . . . Times Spotted 27 | . 23 4 Peak Tracking Total 3 | . 3 3 Tactical Retreats . | . . . Traps | -11 -10 -10 ------- Run | Yrd Mat Sub Traps Triggered 4 | . 4 . Indirectly . | . . . Trap Hack Attempts . | . . . Triggered . | . . . Disarmed . | . . . Reprogrammed . | . . . Reused . | . . . Traps Extracted . | . . . Installed . | . . . Triggered . | . . . Machines | -11 -10 -10 ---------- Run | Yrd Mat Sub Machines Disabled . | . . . Max in Single Turn . | . . . Machines Repaired . | . . . Machines Dismantled . | . . . Machines Sabotaged . | . . . Overloaded Fab Kills . | . . . Hacking | -11 -10 -10 --------- Run | Yrd Mat Sub Machines Accessed 10 | . 10 . Terminals 7 | . 7 . Fabricators . | . . . Repair Stations 1 | . 1 . Recycling Units 2 | . 2 . Scanalyzers . | . . . Garrison Access . | . . . Total Hacks 25 | . 25 . Successful 12 | . 12 . Failed 13 | . 13 . Catastrophic 2 | . 2 . Database Lockouts . | . . . Manual 15 | . 15 . Terminals 17 | . 17 . Fabricators . | . . . Repair Stations 4 | . 4 . Recycling Units 4 | . 4 . Scanalyzers . | . . . Garrison Access . | . . . Terminal Hacks 4 | . 4 . Robot Schematic 1 | . 1 . Terminal Index 1 | . 1 . Dispatch Records 1 | . 1 . Transport Status 1 | . 1 . Fabricator Hacks . | . . . Repair Station Hacks 3 | . 3 . Scan Component 2 | . 2 . Repair 1 | . 1 . Recycling Unit Hacks . | . . . Scanalyzer . | . . . Garrison Access Hacks . | . . . Unauthorized Hacks 5 | . 5 . Terminals 3 | . 3 . Botnet 3 | . 3 . Fabricators . | . . . Repair Stations . | . . . Recycling Units 2 | . 2 . Tunnel 2 | . 2 . Scanalyzers . | . . . Garrison Access . | . . . Data Cores Recovered . | . . . Used . | . . . Hacking Detections 9 | . 9 . Full Trace Events 1 | . 1 . Feedback Events . | . . . Feedback Blocked . | . . . Robot Schematics Acquired 1 | . 1 . Robots Built . | . . . Authchips . | . . . Time . | . . . Total Robot Build Rating . | . . . Part Schematics Acquired . | . . . Parts Built . | . . . Authchips . | . . . Time . | . . . Total Part Build Rating . | . . . Parts Repaired 1 | . 1 . Time 26 | . 26 . Parts Recycled . | . . . Recycled Matter . | . . . Retrieved Matter . | . . . Retrieved Components . | . . . Parts Scanalyzed . | . . . Part Schematics Acquired . | . . . Parts Damaged . | . . . Bothacking | -11 -10 -10 ------------ Run | Yrd Mat Sub Used RIF Installer . | . . . Robots Hacked . | . . . Non-combat . | . . . Combat . | . . . Robot Hacks Applied . | . . . Relay Couplers Released . | . . . Fabnet Peak Effective % . | . . . Robots Rewired . | . . . Allies Hacked . | . . . Hacks Repelled . | . . . Allies | -11 -10 -10 -------- Run | Yrd Mat Sub Total Allies . | . . . Largest Group . | . . . Highest-Rated Group . | . . . Highest-Rated Ally . | . . . Total Orders . | . . . Ally Attacks . | . . . Total Damage . | . . . Kills . | . . . Allies Corrupted . | . . . Allies Melted . | . . . Intel | -11 -10 -10 ------- Run | Yrd Mat Sub Active Infowar (turns) . | . . . Robot Analysis Total . | . . . Derelict Logs Recovered . | . . . Drone Launches . | . . . Drone Recoveries . | . . . Exploration | -11 -10 -10 ------------- Run | Yrd Mat Sub Turns Passed 2240 | 59 2040 141 Spaces Moved 1180 | 55 1101 24 Core 4 | 4 . . Treads 1104 | . 1080 24 Legs . | . . . Wheels 72 | 51 21 . Hover . | . . . Flight . | . . . Fastest Speed 50 | 50 80 160 Average Speed 154 | 77 158 160 Slowest Speed 240 | 80 240 160 Overloaded Moves . | . . . Propulsion Burnouts . | . . . Robots Hopped . | . . . Potential Cave-ins . | . . . Cave-ins Triggered . | . . . Exploration Rate (%) 35 | 3 99 5 Regions Visited 2 Branch Regions 1 Pre-discovered Areas 2 | . 2 . Known Exits Taken . | . . . Unknown Exits Taken 2 | 1 1 . Scrap Searched . | . . . Spaces Dug . | . . . Terrain Destroyed . | . . . Melee . | . . . Projectile . | . . . AOE . | . . . Terrain Rammed . | . . . Walls Destroyed . | . . . Machines Disabled . | . . . Actions | -11 -10 -10 --------- Run | Yrd Mat Sub Total 1437 | 67 1303 67 Wait 105 | 1 97 7 Move 1178 | 54 1100 24 Hop . | . . . Pick Up 30 | 6 24 . Fast Attach 10 | 6 4 . Attach 7 | . 2 5 Detach . | . . . Swap 6 | . 6 . Drop 18 | . 18 . Fire 83 | . 52 31 Melee . | . . . Ram . | . . . Kick . | . . . Crush . | . . . Escape Stasis . | . . . Rewire . | . . . Trap . | . . . Miscellaneous . | . . . Route ------- -11/Scrapyard -10/Materials (discovered 6 exits: [*Mat x3] / [*Min x2] / [*Sub]) -10/Subcaves History --------- Turn | Location | Event 10 | -11/Scrapyard | Discovered new exit (range 15) 60 | -11/Scrapyard | Entered Materials 106 | -10/Materials | Discovered new exit (range 6) 209 | -10/Materials | Discovered new exit (range 11) 285 | -10/Materials | Discovered new exit (range 6) 316 | -10/Materials | Build established: Mutant 383 | -10/Materials | Discovered new exit (range 12) 652 | -10/Materials | Discovered new exit (range 15) 924 | -10/Materials | Discovered new exit (range 16) 1033 | -10/Materials | Repaired Lgt. Armor Plating 2100 | -10/Materials | Entered Subcaves 2101 | -10/Subcaves | Approached by a straggling Scientist 2163 | -10/Subcaves | Core integrity fell below 50% 2196 | -10/Subcaves | Core integrity fell below 20% 2207 | -10/Subcaves | Lost 4 parts (1p2n1u) 2228 | -10/Subcaves | Shifting Twisted Machinery released Battle Rifle 2241 | -10/Subcaves | Destroyed by J3-FEA(R) with Subdweller Machine Gun Last Messages --------------- suitable candidates yet." 02128_ 58U0%V|M|BELA2:V OE>7HW=SXOY 4G-6TV(c): "I think it's somewhere southwest of here" 02203_ BE-JJK(R) destroyed. 02212_ Acquired 47 matter. 02221_ Subatomizers dissect the Sub. Machine Gun. Battle Rifle falls loose from the Twisted Machinery. 02232_ Assault Rifle destroyed. 02241_ Beam Cannon destroyed. Map ----- +----------------------------------------------------+ | | | | | ?????????????????????????????????????????????????? | | ?????????????????????????????????????????????????? | | ?????????????????????????????????????????????????? | | ?????????????????????????????????????????????????? | | ?????????????????????????????????????????????????? | | ?????????????????????????????????????????????????? | | ?????????????????????????????????????????????????? | | ?????????????????????????????????????????????????? | | ?????????????????????????????????????????????????? | | ?????????????????????????????????????????????????? | | ?????????????????????????????????????????????????? | | ?????????????????????????????????????????????????? | | ?????????????????????????????????????????????????? | | ?????????????????????????????????????????????????? | | ?????????????????###????###?###??????????????????? | | ???????????????### ###? ? #??????????????????? | | ???????????????# ## ## ###????????????????? | | ???????????????# < <# # #????????????????? | | ????????????##### z ""?????????????????? | | ???????????# #??????##??????????? | | ??????????? $ #??????" ##?????????? | | ???????????? #????###"# ## ???????? | | ?????????????????# #??###""&&" "???????? | | ?????????????????# @R #?## " "%" ""???????? | | ?????????????????# # # ###""" "[#???????????? | | ?????????????????##??? ## "" " ##???????????? | | ???????????????????? # ## ##????????????? | | ??????????????????# #?#####&[#?????????????? | | ?????????????????# R#????## #### #?????????? | | ???????????????? #???##!&"""""#?????????? | | ??????????????! [??## """""""?????????? | | ??????????????##### "??# """""""??????????? | | ??????????????????? """"""" ?????????? | | ?????????????????? """""""""""?????????? | | ?????????????????# """""" ?????????? | | ?????????????????# """ """" ???????????? | | ??????????????????? ## ""## """"???????????? | | ???????????????????#?#?#% ???## ???????????????? | | ??????????????????????# = ????## ???????????????? | | ????????????????????? ????????# ???????????????? | | ????????????????????? ??????????????????????????? | | ?????????????????????????????????????????????????? | | ?????????????????????????????????????????????????? | | ?????????????????????????????????????????????????? | | ?????????????????????????????????????????????????? | | ?????????????????????????????????????????????????? | | ?????????????????????????????????????????????????? | | ?????????????????????????????????????????????????? | +----------------------------------------------------+ Best States ------------- Heat Dissipation 25 Energy Generation 10 Energy Capacity 250 Matter Stores 300 Matter Capacity 300 Sight Range 16 Terrain Scan Density 10 Armor Coverage 150 Evasion (%) 44 Recoil Reduction 2 Item Schematics ----------------- None Robot Schematics ------------------ M-13 Machinist | -10/Materials | Hacked Fabricated ------------ Nothing Repaired ---------- Lgt. Armor Plating | 5% | -10/Materials Alien Tech Used ----------------- None Achievements -------------- None Challenges ------------ None Game ------ Seed EtherialDeflectorInterpreter Manual? 0 Play Time 00:15:45 Cumulative 500.7 hours Start 2025.05.19 @ 21:15:04 End 2025.05.19 @ 21:28:57 Sessions 1 Manual Loads 0 Difficulty Rogue Special Mode None Game No. 317 Rogue 314 Adventurer 3 Explorer 0 Win Type - Total 8 Types 7/0/1/0/0/0/0/0/0/0 Lore% 74 Gallery% 71 Achievement% 68 Wizard Run 0 Options --------- Layout 0 ASCII 0 Keyboard 0 Movement Numpad Keybinds 0 Fullscreen 1 Font 18/SmallcapsGlow Map View 76x50 Zoom Use 0% Tactical HUD 1 Map Filters NONE Filters NONE Steam 1 RUN: 1737f449-a02f-42d5-942a-e94f19c369b1